bitfinex/quotes_SOLUSD_20250701
["timestamp","ask_amount","ask_price","bid_price","bid_amount"]
[1751385296114,5.51506198,147.53,147.49,5.41506198]
[1751385297235,0.1,147.53,147.49,5.41506198]
[1751385297423,5.51506198,147.53,147.49,5.41506198]
[1751385297625,0.1,147.53,147.49,5.41506198]
[1751385297932,0.1,147.53,147.51,5.41506198]
[1751385299140,0.1,147.53,147.5,5.41506198]
[1751385301542,0.1,147.53,147.51,5.41506198]
[1751385303842,0.1,147.53,147.48,18.64964886]
[1751385304020,5.51506198,147.53,147.49,5.41506198]
[1751385304221,5.51506198,147.53,147.5,5.41506198]
[1751385304222,0.1,147.53,147.5,5.41506198]
[1751385305546,0.1,147.53,147.48,18.64964886]
[1751385305724,0.1,147.53,147.5,5.41506198]
[1751385305921,0.1,147.53,147.51,5.41506198]
[1751385306133,0.1,147.53,147.52,5.41506198]
[1751385306337,0.1,147.53,147.52,24.06471084]
[1751385306863,0.1,147.53,147.52,24.49119555]
[1751385307619,0.1,147.53,147.52,24.06471084]
[1751385307830,0.1,147.53,147.52,18.64964886]
[1751385308030,0.1,147.53,147.52,24.06471084]
[1751385308732,0.1,147.53,147.52,5.41506198]
[1751385309522,0.1,147.53,147.51,5.41506198]
[1751385310725,0.1,147.53,147.5,5.41506198]
[1751385311040,5.51506198,147.53,147.49,12.53506198]
[1751385311246,0.1,147.53,147.5,5.41506198]
[1751385315648,0.1,147.53,147.49,5.41506198]
[1751385316435,5.41506198,147.52,147.48,5.41506198]
[1751385316648,5.41506198,147.51,147.47,5.41506198]
[1751385317953,5.41506198,147.51,147.46,18.84964886]
[1751385318158,5.41506198,147.51,147.47,5.41506198]
[1751385318327,5.41506198,147.51,147.46,0.2]
[1751385318528,5.41506198,147.5,147.46,0.2]
[1751385318853,5.41506198,147.5,147.46,5.61506198]
[1751385319160,5.41506198,147.51,147.47,5.41506198]
[1751385320054,5.41506198,147.51,147.46,5.61506198]
[1751385320824,1.7143,147.52,147.46,0.2]
[1751385321035,5.41506198,147.47,147.46,0.2]
[1751385321742,5.41506198,147.48,147.46,0.2]
[1751385321951,5.41506198,147.47,147.46,0.2]
[1751385329651,31.41506198,147.47,147.46,0.2]
[1751385329954,6.2009,147.49,147.46,0.2]
[1751385330135,5.41506198,147.47,147.46,0.2]
[1751385337145,0.2,147.48,147.46,0.2]
[1751385337352,5.41506198,147.47,147.46,0.2]
[1751385341062,0.2,147.48,147.46,0.2]
[1751385341266,5.61506198,147.48,147.46,0.2]
[1751385341459,5.41506198,147.47,147.46,0.2]
[1751385342268,0.1,147.51,147.46,0.2]
[1751385342452,0.1,147.51,147.46,5.61506198]
[1751385342770,0.1,147.51,147.47,5.41506198]
[1751385343341,5.51506198,147.51,147.47,5.41506198]
[1751385344765,5.51506198,147.51,147.46,0.2]
[1751385344766,5.41506198,147.49,147.46,0.2]
[1751385344961,5.41506198,147.48,147.46,0.2]
[1751385347657,5.41506198,147.47,147.46,0.2]
[1751385351663,31.41506198,147.47,147.46,0.2]
[1751385355985,31.51506198,147.47,147.46,0.2]
[1751385358089,26.1,147.47,147.46,0.2]
[1751385358406,0.1,147.47,147.46,24.26471084]
[1751385362791,0.1,147.47,147.46,25.36934555]
[1751385364681,0.1,147.47,147.46,0.87815]
[1751385364984,0.1,147.47,147.46,0.2]
[1751385365579,5.51506198,147.47,147.46,0.2]
[1751385367095,0.1,147.47,147.46,0.2]
[1751385367298,5.51506198,147.47,147.46,0.2]
[1751385367674,0.1,147.47,147.46,5.61506198]
[1751385368281,0.1,147.47,147.46,0.2]
[1751385368496,0.1,147.47,147.46,5.61506198]
[1751385370477,0.1,147.47,147.46,0.2]
[1751385370676,0.1,147.47,147.46,5.61506198]
[1751385374483,0.1,147.47,147.46,0.2]
[1751385375405,0.1,147.47,147.46,5.61506198]
[1751385376599,0.1,147.47,147.46,24.69119555]
[1751385376799,0.1,147.47,147.46,31.01439555]
[1751385380388,0.1,147.47,147.46,25.17284886]
[1751385380589,0.1,147.47,147.46,24.26471084]
[1751385381708,0.1,147.47,147.46,18.84964886]
[1751385381917,0.1,147.47,147.46,0.2]
[1751385382085,0.1,147.47,147.46,5.61506198]
[1751385385010,0.1,147.47,147.46,0.2]
[1751385385188,0.1,147.47,147.46,5.61506198]
[1751385386513,0.1,147.47,147.46,24.26471084]
[1751385392588,0.1,147.47,147.46,24.69119555]
[1751385396113,0.1,147.47,147.46,24.26471084]
[1751385396513,0.1,147.47,147.46,18.84964886]
[1751385396711,0.1,147.47,147.46,24.26471084]
[1751385398016,0.1,147.47,147.46,18.84964886]
[1751385398328,0.1,147.47,147.46,5.61506198]
[1751385408425,0.1,147.47,147.46,24.26471084]
[1751385408606,0.1,147.47,147.46,24.69119555]
[1751385411545,0.1,147.47,147.46,24.26471084]
[1751385417244,0.1,147.47,147.46,50.26471084]
[1751385418345,0.1,147.47,147.46,0.2]
[1751385418923,0.1,147.47,147.46,5.61506198]
[1751385423449,0.1,147.47,147.46,24.26471084]
[1751385423820,0.1,147.47,147.46,24.69119555]
[1751385427649,0.1,147.47,147.46,18.84964886]
[1751385427854,0.1,147.47,147.46,24.26471084]
[1751385430346,0.1,147.47,147.46,50.26471084]
[1751385436964,0.1,147.47,147.46,18.84964886]
[1751385437167,0.1,147.47,147.46,0.2]
[1751385437765,0.1,147.47,147.46,5.61506198]
[1751385438364,0.1,147.47,147.46,0.2]
[1751385438570,7.07466198,147.47,147.46,0.2]
[1751385443568,0.1,147.47,147.46,5.61506198]
[1751385444368,0.1,147.47,147.46,0.2]
[1751385445040,0.1,147.47,147.46,5.61506198]
[1751385445746,0.1,147.47,147.46,0.2]
[1751385448835,0.1,147.47,147.46,5.61506198]
[1751385451745,0.1,147.47,147.46,24.26471084]
[1751385453265,0.1,147.47,147.46,24.69119555]
[1751385455293,0.1,147.51,147.48,26.0]
[1751385455566,0.1,147.51,147.5,5.41506198]
[1751385456775,0.1,147.51,147.5,5.84154669]
[1751385459466,0.1,147.53,147.52,44.79181043]
[1751385459776,0.1,147.53,147.52,51.16906973]
[1751385460855,0.1,147.53,147.52,32.51942087]
[1751385461279,0.1,147.53,147.52,51.16906973]
[1751385461472,0.1,147.53,147.52,78.76906973]
[1751385461781,0.1,147.54,147.53,18.79181043]
[1751385461966,0.1,147.54,147.53,24.20687241]
[1751385462467,0.1,147.54,147.53,27.53796765]
[1751385464260,0.1,147.54,147.53,8.88831879]
[1751385464587,0.1,147.54,147.53,5.55722355]
[1751385464883,0.1,147.54,147.53,24.49119555]
[1751385471371,0.1,147.54,147.53,19.07613357]
[1751385471570,0.1,147.54,147.53,24.49119555]
[1751385471967,0.1,147.54,147.53,18.64964886]
[1751385472170,0.1,147.54,147.53,24.06471084]
[1751385473369,0.1,147.54,147.53,24.49119555]
[1751385474176,0.1,147.54,147.53,18.64964886]
[1751385474369,0.1,147.54,147.53,24.06471084]
[1751385474869,0.1,147.54,147.53,5.41506198]
[1751385475417,0.1,147.54,147.5,44.79181043]
[1751385475593,0.1,147.54,147.53,5.41506198]
[1751385476168,0.1,147.54,147.52,5.41506198]
[1751385478178,0.1,147.54,147.53,24.06471084]
[1751385482200,0.1,147.54,147.53,24.49119555]
[1751385487095,0.1,147.54,147.53,24.06471084]
[1751385487308,0.1,147.54,147.53,24.26471084]
[1751385490904,0.1,147.54,147.53,24.69119555]
[1751385500414,0.1,147.54,147.53,31.020567]
[1751385500713,0.1,147.54,147.53,24.69119555]
[1751385501294,0.1,147.54,147.53,31.020567]
[1751385503419,0.1,147.54,147.53,24.69119555]
[1751385503713,0.1,147.54,147.53,31.00700575]
[1751385504403,0.1,147.54,147.53,24.69119555]
[1751385504596,0.1,147.54,147.53,31.00653807]
[1751385506120,0.1,147.54,147.53,24.69119555]
[1751385508425,0.1,147.54,147.53,50.69119555]
[1751385508612,0.1,147.54,147.53,30.10625753]
[1751385508799,0.1,147.56,147.55,19.07613357]
[1751385509122,0.1,147.57,147.56,44.79181043]
[1751385509422,0.1,147.57,147.56,61.92991168]
[1751385513944,0.1,147.57,147.56,55.62193439]
[1751385515701,0.1,147.57,147.56,29.90625753]
[1751385515906,0.1,147.57,147.56,36.21423482]
[1751385516831,0.1,147.57,147.56,29.90625753]
[1751385517207,0.1,147.57,147.56,36.20115096]
[1751385518135,0.1,147.57,147.56,29.90625753]
[1751385522120,0.1,147.57,147.56,55.90625753]
[1751385523817,0.1,147.57,147.56,62.37348797]
[1751385524023,0.1,147.57,147.56,48.53560445]
[1751385524228,0.1,147.57,147.56,62.37348797]
[1751385524738,0.1,147.57,147.55,6.29489343]
[1751385525037,3.45947088,147.56,147.53,0.2]
[1751385525211,1.6538,147.55,147.53,0.2]
[1751385525412,8.1425,147.55,147.53,0.2]
[1751385526528,8.1425,147.55,147.53,3.65947088]
[1751385527841,8.1425,147.55,147.53,0.2]
[1751385531338,13.55344479,147.55,147.53,0.2]
[1751385531523,8.1425,147.55,147.53,0.2]
[1751385531843,5.41094479,147.54,147.53,0.2]
[1751385534221,8.1425,147.55,147.53,0.2]
[1751385540139,0.1,147.56,147.54,5.41094479]
[1751385540344,0.1,147.56,147.55,5.41094479]
[1751385541120,0.1,147.56,147.55,24.06059365]
[1751385546747,0.1,147.56,147.55,18.64964886]
[1751385546938,0.1,147.56,147.55,24.06059365]
[1751385548427,0.1,147.56,147.55,30.57575951]
[1751385549655,0.1,147.56,147.55,25.16481472]
[1751385549947,0.1,147.56,147.55,24.73833001]
[1751385550150,0.1,147.56,147.55,24.06059365]
[1751385553653,0.1,147.56,147.55,29.89802315]
[1751385553840,0.1,147.56,147.55,24.48707836]
[1751385554173,0.1,147.56,147.55,24.68707836]
[1751385558344,0.1,147.56,147.55,30.09802315]
[1751385559247,0.1,147.56,147.55,57.67802315]
[1751385562139,0.1,147.56,147.55,52.26707836]
[1751385562350,0.1,147.56,147.55,51.98275522]
[1751385562735,0.1,147.56,147.55,77.84059365]
[1751385562936,0.1,147.56,147.55,50.26059365]
[1751385565860,0.1,147.56,147.55,44.84964886]
[1751385566045,0.1,147.56,147.55,5.61094479]
[1751385566248,0.1,147.56,147.55,0.2]
[1751385566455,0.1,147.56,147.55,5.61094479]
[1751385571169,0.1,147.56,147.55,24.26059365]
[1751385573966,0.1,147.56,147.55,5.61094479]
[1751385574371,0.1,147.56,147.55,0.2]
[1751385574854,5.51094479,147.56,147.55,0.2]
[1751385579352,0.1,147.56,147.55,0.2]
[1751385585063,5.51094479,147.56,147.55,0.2]
[1751385585756,10.92188958,147.56,147.55,0.2]
[1751385585960,37.84100636,147.54,147.53,0.2]
[1751385586258,51.07971043,147.54,147.53,0.2]
[1751385586463,32.43006157,147.54,147.53,0.2]
[1751385586676,37.84100636,147.54,147.53,0.2]
[1751385594097,11.84100636,147.54,147.53,0.2]
[1751385596595,6.43006157,147.54,147.53,0.2]
[1751385596784,11.69884479,147.54,147.53,0.2]
[1751385597299,5.41094479,147.54,147.53,0.2]
[1751385597800,26.0,147.55,147.53,0.2]
[1751385598003,5.41094479,147.54,147.53,0.2]
[1751385604903,5.55310636,147.54,147.53,0.2]
[1751385605086,5.41094479,147.54,147.53,0.2]
[1751385605515,18.79181043,147.53,147.5,0.2]
[1751385605708,18.79181043,147.53,147.47,0.2]
[1751385605709,36.96405115,147.51,147.47,0.2]
[1751385605888,5.41094479,147.48,147.47,0.2]
[1751385610002,5.55310636,147.48,147.47,0.2]
[1751385610310,0.14216157,147.48,147.47,0.2]
[1751385610491,5.55310636,147.48,147.47,0.2]
[1751385611414,31.55310636,147.48,147.47,0.2]
[1751385611799,26.14216157,147.48,147.47,0.2]
[1751385612110,31.55310636,147.48,147.47,0.2]
[1751385612309,31.41094479,147.48,147.47,0.2]
[1751385613395,31.55310636,147.48,147.47,0.2]
[1751385617904,50.20275522,147.48,147.47,0.2]
[1751385619719,7.1,147.49,147.47,0.2]
[1751385620100,12.51094479,147.49,147.47,0.2]
[1751385620300,5.41094479,147.48,147.47,0.2]
[1751385621704,7.1,147.49,147.47,0.2]
[1751385622020,5.41094479,147.48,147.47,0.2]
[1751385622407,7.1,147.49,147.47,0.2]
[1751385622607,5.41094479,147.48,147.47,0.2]
[1751385623323,5.55310636,147.48,147.47,0.2]
[1751385624198,7.3,147.49,147.47,0.2]
[1751385624515,0.2,147.52,147.48,5.41094479]
[1751385624712,0.2,147.52,147.49,5.41094479]
[1751385625221,5.61094479,147.52,147.48,5.41094479]
[1751385625605,5.41094479,147.5,147.47,0.2]
[1751385626010,5.41094479,147.51,147.47,5.61094479]
[1751385626207,5.41094479,147.51,147.47,0.2]
[1751385626410,5.41094479,147.51,147.47,5.61094479]
[1751385626613,5.41094479,147.5,147.47,0.2]
[1751385628507,5.41094479,147.49,147.47,0.2]
[1751385630551,0.2,147.51,147.48,5.41094479]
[1751385631402,0.2,147.51,147.47,5.61094479]
[1751385631600,5.61094479,147.51,147.47,5.61094479]
[1751385631824,5.61094479,147.51,147.47,0.2]
[1751385632024,5.61094479,147.51,147.47,5.61094479]
[1751385632931,0.2,147.51,147.47,5.61094479]
[1751385633235,5.61094479,147.51,147.47,5.61094479]
[1751385634426,5.41094479,147.5,147.47,0.2]
[1751385635133,5.61094479,147.51,147.47,5.61094479]
[1751385635826,5.61094479,147.51,147.48,5.41094479]
[1751385635827,0.2,147.51,147.48,5.41094479]
[1751385636032,0.2,147.51,147.49,5.41094479]
[1751385636250,5.71094479,147.55,147.5,5.41094479]
[1751385636425,5.71094479,147.55,147.51,5.41094479]
[1751385636830,31.71094479,147.55,147.51,5.41094479]
[1751385637033,5.41094479,147.54,147.5,5.41094479]
[1751385637234,0.1,147.51,147.5,5.41094479]
[1751385639436,0.1,147.51,147.5,14.23953403]
[1751385639621,0.1,147.55,147.51,18.64964886]
[1751385639822,0.1,147.55,147.54,5.41094479]
[1751385644027,0.1,147.55,147.53,5.41094479]
[1751385645444,0.1,147.55,147.54,5.41094479]
[1751385649454,0.1,147.55,147.51,18.64964886]
[1751385649753,0.1,147.55,147.5,7.8663]
[1751385649963,0.1,147.55,147.53,5.41094479]
[1751385650548,0.1,147.55,147.54,5.41094479]
[1751385652767,0.1,147.55,147.53,5.41094479]
[1751385653968,0.1,147.55,147.54,5.41094479]
[1751385654268,0.1,147.55,147.5,7.8663]
[1751385654442,0.1,147.55,147.54,5.41094479]
[1751385655765,0.1,147.55,147.53,5.41094479]
[1751385656168,0.1,147.55,147.52,5.41094479]
[1751385658370,0.1,147.55,147.54,5.41094479]
[1751385660447,0.1,147.55,147.53,5.41094479]
[1751385661176,0.1,147.55,147.54,5.41094479]
[1751385667552,0.1,147.55,147.54,37.60003844]
[1751385667757,0.1,147.55,147.54,32.18909365]
[1751385672081,0.1,147.55,147.54,38.02652315]
[1751385673256,0.1,147.55,147.54,32.61557836]
[1751385673874,0.1,147.55,147.54,20.22594886]
[1751385674078,0.1,147.55,147.54,25.63689365]
[1751385674282,0.1,147.55,147.51,18.64964886]
[1751385674488,0.1,147.55,147.5,8.2825]
[1751385674793,0.1,147.55,147.52,5.41094479]
[1751385678178,0.1,147.55,147.49,31.18059365]
[1751385678376,0.1,147.55,147.52,5.41094479]
[1751385679485,0.1,147.55,147.53,5.41094479]
[1751385679685,0.1,147.55,147.54,5.41094479]
[1751385680607,0.1,147.55,147.54,24.06059365]
[1751385680788,0.1,147.55,147.54,30.57580544]
[1751385681109,0.1,147.56,147.54,30.57580544]
[1751385681283,0.1,147.56,147.55,11.24837429]
[1751385685013,0.1,147.56,147.54,32.98748446]
[1751385685313,0.1,147.56,147.54,5.41094479]
[1751385685482,0.1,147.56,147.51,158.11293623]
[1751385685483,0.1,147.56,147.55,5.41094479]
[1751385690817,0.1,147.56,147.52,18.64964886]
[1751385691015,0.1,147.56,147.54,5.41094479]
[1751385691222,5.51094479,147.56,147.51,6.30970217]
[1751385691519,5.51094479,147.56,147.5,6.30970217]
[1751385691727,5.51094479,147.56,147.52,5.41094479]
[1751385695105,0.1,147.56,147.52,5.41094479]
[1751385695307,0.1,147.56,147.53,5.41094479]
[1751385696624,5.51094479,147.56,147.52,5.41094479]
[1751385697628,5.41094479,147.54,147.5,5.41094479]
[1751385697829,5.41094479,147.51,147.49,0.2]
[1751385698323,5.41094479,147.52,147.49,0.2]
[1751385700321,5.41094479,147.51,147.49,0.2]
[1751385703300,1.6487,147.53,147.49,0.2]
[1751385703610,5.41094479,147.51,147.49,0.2]
[1751385704523,1.6487,147.53,147.49,0.2]
[1751385704712,5.41094479,147.51,147.49,0.2]
[1751385705426,32.5544,147.55,147.49,0.2]
[1751385705427,0.3,147.56,147.5,5.41094479]
[1751385705732,31.51094479,147.56,147.52,5.41094479]
[1751385706309,26.1,147.56,147.52,5.41094479]
[1751385706504,0.1,147.56,147.55,5.41094479]
[1751385706724,0.1,147.56,147.55,18.01182594]
[1751385706905,0.1,147.56,147.55,37.08795951]
[1751385707235,0.1,147.57,147.56,19.07613357]
[1751385707535,0.1,147.57,147.56,29.89802315]
[1751385708233,0.1,147.57,147.56,29.47153844]
[1751385708730,0.1,147.57,147.56,24.06059365]
[1751385709029,0.1,147.57,147.56,10.82188958]
[1751385709208,0.1,147.57,147.56,5.41094479]
[1751385709807,0.1,147.57,147.54,5.41094479]
[1751385710330,0.1,147.57,147.55,5.41094479]
[1751385710704,0.1,147.57,147.54,5.41094479]
[1751385711137,0.1,147.57,147.55,5.41094479]
[1751385712211,0.1,147.57,147.56,5.41094479]
[1751385712411,0.1,147.57,147.53,26.0]
[1751385712632,0.1,147.57,147.56,5.41094479]
[1751385713030,0.1,147.57,147.56,29.47153844]
[1751385715237,0.1,147.57,147.56,29.89802315]
[1751385716955,0.1,147.57,147.56,24.06059365]
[1751385717326,0.1,147.57,147.56,29.47153844]
[1751385718038,0.1,147.57,147.56,24.06059365]
[1751385718421,0.1,147.57,147.56,5.41094479]
[1751385719725,0.1,147.57,147.56,24.06059365]
[1751385720124,0.1,147.57,147.56,24.26059365]
[1751385720545,0.1,147.57,147.56,5.61094479]
[1751385720842,0.1,147.57,147.56,11.02188958]
[1751385721041,0.1,147.57,147.56,11.44837429]
[1751385724145,0.1,147.57,147.56,6.0374295]
[1751385724541,0.1,147.57,147.56,5.61094479]
[1751385729543,0.1,147.57,147.56,29.67153844]
[1751385734851,0.1,147.57,147.56,30.09802315]
[1751385735479,0.1,147.57,147.56,19.27613357]
[1751385735649,0.1,147.57,147.56,18.84964886]
[1751385735845,0.1,147.57,147.56,5.61094479]
[1751385742871,0.1,147.57,147.56,0.2]
[1751385743286,5.51094479,147.57,147.56,0.2]
[1751385743582,5.51094479,147.57,147.51,5.41094479]
[1751385743583,6.4905,147.56,147.5,0.2]
[1751385743777,5.41094479,147.53,147.5,0.2]
[1751385744369,5.41094479,147.54,147.5,0.2]
[1751385745074,5.41094479,147.53,147.5,0.2]
[1751385745266,6.4905,147.56,147.5,0.2]
[1751385745442,5.41094479,147.53,147.5,0.2]
[1751385745765,5.41094479,147.55,147.5,5.61094479]
[1751385746145,5.41094479,147.55,147.51,5.41094479]
[1751385749474,6.4905,147.56,147.51,5.41094479]
[1751385749680,5.41094479,147.55,147.51,5.41094479]
[1751385750877,5.41094479,147.55,147.5,5.61094479]
[1751385751290,5.41094479,147.55,147.51,5.41094479]
[1751385751661,6.4905,147.56,147.51,5.41094479]
[1751385751979,5.41094479,147.55,147.51,5.41094479]
[1751385752555,5.41094479,147.55,147.5,5.61094479]
[1751385753573,6.4905,147.56,147.5,5.61094479]
[1751385753878,5.41094479,147.53,147.5,0.2]
[1751385754080,11.90144479,147.56,147.5,0.2]
[1751385754081,5.41094479,147.51,147.5,0.2]
[1751385754386,26.0,147.55,147.5,0.2]
[1751385754387,5.41094479,147.52,147.5,0.2]
[1751385755360,26.0,147.55,147.5,0.2]
[1751385755765,5.41094479,147.53,147.5,0.2]
[1751385755963,26.0,147.55,147.5,5.61094479]
[1751385756166,5.41094479,147.55,147.5,5.61094479]
[1751385756682,5.41094479,147.55,147.51,5.41094479]
[1751385757185,26.1,147.57,147.51,5.41094479]
[1751385757486,5.41094479,147.55,147.51,5.41094479]
[1751385760790,26.1,147.57,147.51,5.41094479]
[1751385760957,5.41094479,147.55,147.51,5.41094479]
[1751385761154,0.1,147.57,147.54,5.41094479]
[1751385761359,0.1,147.57,147.55,5.41094479]
[1751385761657,0.1,147.57,147.54,5.41094479]
[1751385762893,5.41094479,147.56,147.52,5.41094479]
[1751385763184,5.41094479,147.56,147.5,18.84964886]
[1751385763185,5.51094479,147.57,147.53,5.41094479]
[1751385763582,0.1,147.57,147.54,5.41094479]
[1751385763762,0.1,147.57,147.55,5.41094479]
[1751385764691,0.1,147.57,147.51,0.42648471]
[1751385765091,0.1,147.57,147.55,5.41094479]
[1751385766109,0.1,147.57,147.54,5.41094479]
[1751385766674,0.1,147.57,147.55,5.41094479]
[1751385766880,0.1,147.57,147.51,0.42648471]
[1751385767105,0.1,147.57,147.55,5.41094479]
[1751385767492,0.1,147.57,147.56,5.41094479]
[1751385770313,0.1,147.57,147.56,31.41094479]
[1751385770708,0.1,147.57,147.56,5.41094479]
[1751385772406,0.1,147.57,147.55,5.41094479]
[1751385772911,0.1,147.57,147.54,5.41094479]
[1751385773690,0.1,147.57,147.55,5.41094479]
[1751385773886,0.1,147.57,147.56,5.41094479]
[1751385774706,0.1,147.57,147.55,5.41094479]
[1751385775313,0.1,147.57,147.51,7.16]
[1751385775618,0.1,147.57,147.53,5.41094479]
[1751385775916,0.1,147.57,147.51,51.80964886]
[1751385775917,0.1,147.57,147.55,5.41094479]
[1751385776116,0.1,147.57,147.51,51.80964886]
[1751385776117,0.1,147.57,147.56,5.41094479]
[1751385776405,0.1,147.57,147.55,5.41094479]
[1751385777499,0.1,147.57,147.52,0.42648471]
[1751385777708,0.1,147.57,147.55,5.41094479]
[1751385778603,0.1,147.57,147.56,5.41094479]
[1751385780292,0.1,147.57,147.55,5.41094479]
[1751385780495,0.1,147.57,147.52,19.07613357]
[1751385780718,0.1,147.57,147.55,5.41094479]
[1751385781008,0.1,147.57,147.54,5.41094479]
[1751385781409,0.1,147.57,147.55,5.41094479]
[1751385783009,0.1,147.57,147.52,19.07613357]
[1751385783208,0.1,147.57,147.56,5.41094479]
[1751385783411,0.1,147.57,147.55,5.41094479]
[1751385783802,0.1,147.57,147.54,5.41094479]
[1751385786016,0.1,147.57,147.55,0.2]
[1751385786917,0.1,147.57,147.55,5.61094479]
[1751385788824,0.1,147.57,147.55,0.2]
[1751385789005,5.51094479,147.57,147.55,0.2]
[1751385789210,0.1,147.57,147.55,0.2]
[1751385791127,5.51094479,147.57,147.55,0.2]
[1751385792144,0.1,147.57,147.55,0.2]
[1751385793920,5.51094479,147.57,147.55,0.2]
[1751385795628,0.1,147.57,147.55,0.2]
[1751385796124,0.1,147.57,147.56,5.41094479]
[1751385797738,0.1,147.57,147.55,0.2]
[1751385798315,5.51094479,147.57,147.55,0.2]
[1751385798721,0.1,147.57,147.55,0.2]
[1751385799942,5.41094479,147.56,147.55,0.2]
[1751385800133,5.51094479,147.57,147.55,0.2]
[1751385800510,0.1,147.57,147.55,0.2]
[1751385800736,0.1,147.57,147.55,5.61094479]
[1751385801223,0.1,147.57,147.56,5.41094479]
[1751385804038,0.1,147.57,147.55,0.2]
[1751385804343,0.1,147.57,147.56,5.41094479]
[1751385807620,0.1,147.57,147.56,29.47153844]
[1751385807819,0.1,147.58,147.56,62.19496514]
[1751385808036,0.1,147.59,147.58,0.28432314]
[1751385808235,0.1,147.59,147.58,5.69526793]
[1751385809029,0.1,147.59,147.58,5.8374295]
[1751385809232,0.1,147.59,147.57,6.29694199]
[1751385809440,0.1,147.59,147.58,5.41094479]
[1751385810238,0.1,147.59,147.56,18.64964886]
[1751385810436,0.1,147.59,147.58,5.41094479]
[1751385812628,0.1,147.59,147.57,5.41094479]
[1751385814258,0.1,147.59,147.55,18.84964886]
[1751385814450,0.1,147.59,147.57,5.41094479]
[1751385818361,5.51094479,147.59,147.55,5.61094479]
[1751385819348,5.41094479,147.58,147.55,0.2]
[1751385819757,5.51094479,147.59,147.55,5.61094479]
[1751385821070,5.41094479,147.57,147.55,0.2]
[1751385822645,5.41094479,147.56,147.55,0.2]
[1751385825555,0.1,147.59,147.55,5.61094479]
[1751385825769,0.1,147.59,147.58,5.41094479]
[1751385826564,0.1,147.59,147.56,18.64964886]
[1751385826867,0.1,147.59,147.58,5.41094479]
[1751385827064,0.1,147.59,147.56,18.64964886]
[1751385827368,0.1,147.59,147.58,5.41094479]
[1751385829469,0.1,147.59,147.55,0.2]
[1751385829650,0.1,147.59,147.58,5.41094479]
[1751385831471,0.1,147.59,147.58,24.06059365]
[1751385832856,0.1,147.59,147.58,24.48707836]
[1751385835270,0.1,147.59,147.58,24.06059365]
[1751385836983,0.1,147.59,147.58,5.61094479]
[1751385837856,0.1,147.59,147.58,0.2]
[1751385839372,5.51094479,147.59,147.58,0.2]
[1751385851688,0.1,147.59,147.58,0.2]
[1751385851889,5.51094479,147.59,147.58,0.2]
[1751385852385,0.1,147.59,147.58,0.2]
[1751385853587,5.51094479,147.59,147.58,0.2]
[1751385853778,0.1,147.59,147.58,0.2]
[1751385855871,5.51094479,147.59,147.58,0.2]
[1751385857899,7.16470636,147.59,147.58,0.2]
[1751385858690,32.58988201,147.59,147.58,0.2]
[1751385858883,25.81435522,147.59,147.58,0.2]
[1751385859084,32.58988201,147.59,147.58,0.2]
[1751385860275,20.40341043,147.59,147.58,0.2]
[1751385860476,25.81435522,147.59,147.58,0.2]
[1751385861291,7.16470636,147.59,147.58,0.2]
[1751385863485,13.94023315,147.59,147.58,0.2]
[1751385863893,7.16470636,147.59,147.58,0.2]
[1751385864691,1.75376157,147.59,147.58,0.2]
[1751385864889,7.16470636,147.59,147.58,0.2]
[1751385865609,26.0,147.56,147.55,0.2]
[1751385865827,36.96405115,147.56,147.55,0.2]